bitfinex-derivatives/quotes_ETHF0:USTF0_20250422
["timestamp","ask_amount","ask_price","bid_price","bid_amount"]
[1745340152093,1.17921,1694.9,1694.8,1.1792]
[1745340152297,1.17921,1694.9,1694.7,2.85614]
[1745340152496,1.17923,1694.8,1694.7,1.6769]
[1745340152694,2.13493,1694.8,1694.6,7.40565179]
[1745340152891,3.8503,1694.7,1694.6,6.22634179]
[1745340153196,3.8503,1694.7,1694.6,6.48370179]
[1745340153496,3.8503,1694.7,1694.6,8.16060179]
[1745340154298,3.8503,1694.7,1694.6,6.05224179]
[1745340154490,1.17943,1694.5,1694.4,5.31627]
[1745340154690,1.1795,1694.5,1694.4,1.17948]
[1745340154897,1.1795,1694.4,1694.3,3.89113]
[1745340155098,43.6776,1694.4,1694.3,3.89113]
[1745340155800,1.17964,1694.2,1694.1,4.37534179]
[1745340156001,45.18732,1694.4,1694.1,4.37534179]
[1745340156195,44.0078,1694.4,1694.3,1.17957]
[1745340156389,40.8,1694.4,1694.3,1.17957]
[1745340156700,40.8,1694.4,1694.3,3.89117]
[1745340158496,40.8,1694.4,1694.3,11.47431179]
[1745340158693,0.00883939,1694.6,1694.5,1.17943]
[1745340158895,0.00200396,1694.6,1694.5,4.38723]
[1745340159300,0.00200396,1694.6,1694.5,5.35683]
[1745340161007,0.9734,1695.2,1695.1,1.17902]
[1745340161202,1.6872,1695.3,1695.2,1.17895]
[1745340161504,42.4872,1695.3,1695.2,1.17895]
[1745340163606,40.8,1695.3,1695.2,1.17895]
[1745340163807,40.8,1695.3,1695.2,2.08925]
[1745340164007,40.8,1695.3,1695.2,3.73835]
[1745340164206,40.8,1695.3,1695.2,2.82805]
[1745340164707,42.5293,1695.3,1695.2,2.82805]
[1745340167106,40.8,1695.3,1695.2,3.81765]
[1745340168903,0.9648,1695.6,1695.5,1.17874]
[1745340169098,2.6372,1695.7,1695.6,1.17867]
[1745340169304,43.4372,1695.7,1695.6,1.17867]
[1745340171815,3.21663939,1695.8,1695.7,1.1786]
[1745340172004,0.00883939,1695.8,1695.7,1.1786]
[1745340172205,0.00883939,1695.8,1695.7,2.8924]
[1745340172701,1.77243939,1695.8,1695.7,2.8924]
[1745340175007,0.00883939,1695.8,1695.7,2.8924]
[1745340175212,1.64303939,1695.8,1695.7,2.8924]
[1745340177514,0.00883939,1695.8,1695.7,2.8924]
[1745340177817,0.00883939,1695.8,1695.7,3.843]
[1745340181514,0.00883939,1695.8,1695.7,8.21834179]
[1745340182617,1.18736939,1695.8,1695.7,5.55394179]
[1745340182917,1.79043939,1695.8,1695.7,5.55394179]
[1745340183604,2.96896939,1695.8,1695.7,5.55394179]
[1745340184215,7.96896939,1695.8,1695.7,4.37534179]
[1745340184412,11.17676939,1695.8,1695.7,5.55394179]
[1745340185514,6.17676939,1695.8,1695.7,5.55394179]
[1745340186213,4.99823939,1695.8,1695.7,4.37534179]
[1745340186420,11.17676939,1695.8,1695.7,4.37534179]
[1745340186820,1.17867,1695.6,1695.5,0.00883939]
[1745340187007,4.38647,1695.6,1695.5,0.00883939]
[1745340187413,10.99357,1695.6,1695.5,0.00883939]
[1745340187616,10.99357,1695.6,1695.5,1.18757939]
[1745340188018,10.99357,1695.6,1695.5,0.00883939]
[1745340188421,5.99357,1695.6,1695.5,1.18757939]
[1745340188914,5.99357,1695.6,1695.5,0.00883939]
[1745340189513,10.99357,1695.6,1695.5,0.00883939]
[1745340190322,17.31557,1695.6,1695.5,0.00883939]
[1745340191016,12.31557,1695.6,1695.5,0.00883939]
[1745340191611,12.31557,1695.6,1695.5,0.00265392]
[1745340193122,5.99357,1695.6,1695.5,0.00265392]
[1745340195215,1.17888,1695.3,1695.2,1.17894]
[1745340195817,3.78158,1695.3,1695.2,1.17894]
[1745340196319,1.17902,1695.2,1695.1,1.18780939]
[1745340196521,6.02162,1695.2,1695.1,0.00883939]
[1745340196718,6.02162,1695.2,1695.1,1.18785939]
[1745340197724,2.81382,1695.2,1695.1,1.18785939]
[1745340198024,6.02162,1695.2,1695.1,1.18785939]
[1745340198619,6.02162,1695.2,1695.1,0.00883939]
[1745340198820,6.02162,1695.2,1695.1,1.18785939]
[1745340199127,6.02162,1695.2,1695.1,0.00883939]
[1745340200026,6.02162,1695.2,1695.1,1.18785939]
[1745340201319,6.02162,1695.2,1695.1,2.18305939]
[1745340202726,4.38675,1695.2,1695.1,2.18305939]
[1745340203526,6.08395,1695.2,1695.1,2.18305939]
[1745340203722,0.9679,1695.3,1695.2,1.17895]
[1745340203921,3.2078,1695.6,1695.2,2.92765]
[1745340204116,1.17886,1695.4,1695.3,1.17882]
[1745340204323,1.17886,1695.4,1695.3,2.92752]
[1745340204514,1.17886,1695.4,1695.1,1.96403939]
[1745340204515,3.2078,1695.4,1695.1,1.96403939]
[1745340204720,1.17895,1695.2,1695.1,3.93175939]
[1745340204923,1.17895,1695.2,1695.1,1.75753939]
[1745340205124,6.08395,1695.2,1695.1,0.00883939]
[1745340206727,1.17916,1694.9,1694.7,4.37534179]
[1745340206924,1.17926,1694.8,1694.7,1.1792]
[1745340207120,2.94815,1694.8,1694.5,1.9718]
[1745340207329,1.17936,1694.6,1694.5,3.15119]
[1745340207522,2.94869,1694.5,1694.1,4.37534179]
[1745340207844,1.0211,1694.4,1694.3,1.17957]
[1745340208032,0.00883939,1694.5,1694.4,1.1795]
[1745340208326,9.36993,1695.0,1694.5,2.94848]
[1745340208530,8.1908,1695.0,1694.9,1.17916]
[1745340208733,9.36989,1695.0,1694.9,1.17916]
[1745340209134,1.17919,1694.9,1694.8,1.1792]
[1745340209333,1.17919,1694.9,1694.8,3.9551]
[1745340209631,2.81329,1694.9,1694.8,2.7759]
[1745340209837,2.81329,1694.9,1694.8,3.95513]
[1745340210235,1.17919,1694.9,1694.8,3.95513]
[1745340210836,2.81329,1694.9,1694.8,3.95513]
[1745340211339,1.17919,1694.9,1694.8,3.95513]
[1745340211539,46.97097939,1695.0,1694.9,1.17916]
[1745340211734,40.80883939,1695.0,1694.9,2.96226]
[1745340212832,41.98792939,1695.0,1694.9,2.96226]
[1745340213936,40.80883939,1695.0,1694.9,2.96226]
[1745340214336,41.98792939,1695.0,1694.9,2.96226]
[1745340214539,1.18792939,1695.0,1694.9,2.96226]
[1745340214925,41.98792939,1695.0,1694.9,1.7831]
[1745340215139,45.19572939,1695.0,1694.9,1.7831]
[1745340215340,1.17916,1694.9,1694.8,0.9928]
[1745340215631,1.17923,1694.8,1694.7,0.00883939]
[1745340215937,10.33783,1694.8,1694.7,0.00883939]
[1745340216648,1.1795,1694.4,1694.3,2.19214]
[1745340216940,1.1795,1694.4,1694.3,2.18530457]
[1745340217345,1.1795,1694.4,1694.3,3.80340457]
[1745340218236,41.9795,1694.4,1694.3,3.80340457]
[1745340220042,40.8,1694.4,1694.3,3.80340457]
[1745340220242,41.9795,1694.4,1694.3,3.80340457]
[1745340220632,40.8,1694.4,1694.3,3.80340457]
[1745340221041,43.6258,1694.4,1694.3,2.62386457]
[1745340221342,43.6258,1694.4,1694.3,3.80343457]
[1745340221837,40.8,1694.4,1694.3,3.80343457]
[1745340222035,41.9795,1694.4,1694.3,3.80343457]
[1745340222935,41.9795,1694.4,1694.3,2.62386457]
[1745340223136,45.1873,1694.4,1694.3,2.62386457]
[1745340223441,46.95657,1694.4,1694.2,1.17963]
[1745340223742,3.94004,1694.3,1694.2,1.17963]
[1745340224343,3.94004,1694.3,1694.1,2.84225]
[1745340224642,2.7604,1694.3,1694.2,1.17964]
[1745340224845,1.17957,1694.3,1694.2,2.91374]
[1745340225345,43.74117,1694.4,1694.3,1.17957]
[1745340226244,41.97957,1694.4,1694.3,1.17957]
[1745340227042,40.8,1694.4,1694.3,2.91367]
[1745340227444,40.8,1694.4,1694.3,11.12147]
[1745340228143,2.8276,1694.7,1694.6,1.17936]
[1745340228338,1.6483,1694.7,1694.6,1.17936]
[1745340228538,1.0238,1694.8,1694.7,1.1793]
[1745340228847,44.65138,1694.8,1694.7,1.1793]
[1745340229847,1.17936,1694.6,1694.5,2.89291]
[1745340230542,1.6483,1694.6,1694.5,2.89291]
[1745340230935,2.82766,1694.6,1694.5,2.89291]
[1745340231140,2.82768,1694.6,1694.5,1.17943]
[1745340231944,4.38715,1694.7,1694.6,1.17936]
[1745340232138,6.12325,1694.7,1694.6,1.17936]
[1745340232939,1.17936,1694.6,1694.5,2.92157]
[1745340233143,2.91546,1694.6,1694.5,2.92157]
[1745340233442,2.91546,1694.6,1694.5,1.17937]
[1745340233748,1.17943,1694.5,1694.4,5.54796636]
[1745340233950,2.7604,1694.5,1694.4,7.23596636]
[1745340234246,2.7604,1694.5,1694.4,2.86746]
[1745340234650,3.93983,1694.5,1694.4,2.86746]
[1745340235045,2.7604,1694.5,1694.4,2.86746]
[1745340235240,1.17931,1694.7,1694.6,1.17931]
[1745340235440,2.7604,1694.7,1694.6,1.17931]
[1745340235642,3.9397,1694.7,1694.6,1.17931]
[1745340235845,3.9397,1694.7,1694.6,2.86731]
[1745340236048,3.9397,1694.7,1694.2,4.36850636]
[1745340236049,2.7604,1694.7,1694.1,3.2078]
[1745340236243,6.15699,1694.2,1693.6,3.7884]
[1745340236447,3.2078,1693.9,1693.6,2.86803]
[1745340236748,44.66037,1693.8,1693.6,2.86801]
[1745340236948,44.66037,1693.8,1693.7,1.17999]
[1745340236949,41.8066,1693.8,1693.7,1.17999]
[1745340237147,41.8066,1693.8,1693.7,9.27349]
[1745340237353,40.8,1693.8,1693.7,9.27349]
[1745340237743,1.17982,1694.0,1693.8,1.17989]
[1745340238142,1.17982,1694.0,1693.8,7.50189]
[1745340238345,40.8,1693.9,1693.8,7.50189]
[1745340238947,40.8,1693.9,1693.8,12.50189]
[1745340239141,40.8,1693.9,1693.8,7.50189]
[1745340239647,41.97985,1693.9,1693.8,9.27339]
[1745340239854,40.8,1693.9,1693.8,9.27339]
[1745340240050,41.97985,1693.9,1693.8,6.322]
[1745340242950,41.97985,1693.9,1693.8,7.50192]
[1745340243264,40.8,1693.9,1693.8,7.50192]
[1745340243450,40.8,1693.9,1693.8,8.54732]
[1745340244151,0.00883939,1694.1,1694.0,1.17978]
[1745340244860,0.00883939,1694.1,1694.0,2.22378]
[1745340245372,0.00883939,1694.1,1694.0,8.54578]
[1745340246747,0.00883939,1694.1,1694.0,16.75358]
[1745340247456,0.00883939,1694.1,1694.0,11.75358]
[1745340247761,0.00883939,1694.1,1694.0,8.54578]
[1745340248064,0.00883939,1694.1,1694.0,12.91428636]
[1745340248268,0.00883939,1694.1,1694.0,11.59228636]
[1745340248468,0.00883939,1694.1,1694.0,6.59228636]
[1745340249163,0.00883939,1694.1,1694.0,12.91428636]
[1745340259066,0.00883939,1694.1,1694.0,11.87028636]
[1745340259263,0.00883939,1694.1,1694.0,6.53458636]
[1745340260163,0.00883939,1694.1,1694.0,12.85658636]
[1745340261267,0.00883939,1694.1,1694.0,6.53458636]
[1745340261458,0.00883939,1694.1,1694.0,1.17978]
[1745340261964,1.78053939,1694.1,1694.0,1.17978]
[1745340262163,2.74833939,1694.1,1694.0,1.17978]
[1745340263363,0.00883939,1694.1,1694.0,2.79558]
[1745340264159,0.00883939,1694.1,1694.0,9.11758]
[1745340268165,0.00883939,1694.1,1694.0,2.79558]
[1745340269172,0.00883939,1694.1,1694.0,9.11758]
[1745340270970,0.00883939,1694.1,1694.0,12.32538]
[1745340272281,0.00883939,1694.1,1694.0,16.69388636]
[1745340272870,9.39e-06,1694.1,1694.0,16.69388636]
[1745340274074,9.39e-06,1694.1,1694.0,21.69388636]
[1745340274271,1.7823,1694.6,1694.5,1.17943]
[1745340274471,1.77546457,1694.6,1694.5,1.17943]
[1745340274670,42.57546457,1694.6,1694.5,1.17943]
[1745340274871,40.8,1694.6,1694.5,2.89343]
[1745340275390,1.95733939,1694.7,1694.6,1.17936]
[1745340275578,1.95733939,1694.7,1694.6,2.89336]
[1745340275972,42.75733939,1694.7,1694.6,2.89336]
[1745340276972,42.75733939,1694.7,1694.6,6.10116]
[1745340278976,42.75733939,1694.7,1694.6,4.38716]
[1745340279775,44.48023939,1694.7,1694.6,4.38716]
[1745340280978,44.48023939,1694.7,1694.6,1.17936]
[1745340282895,45.65953939,1694.7,1694.6,1.17936]
[1745340283185,44.48023939,1694.7,1694.6,1.17936]
[1745340286687,44.48023939,1694.7,1694.6,2.94006]
[1745340290398,44.48023939,1694.7,1694.6,6.14786]
[1745340290689,3.68023939,1694.7,1694.6,3.98666]
[1745340291080,0.00883939,1694.7,1694.6,3.98666]
[1745340291279,40.8,1694.9,1694.8,1.17923]
[1745340291280,2.6446,1694.9,1694.8,1.17923]
[1745340291690,43.4446,1694.9,1694.8,1.17923]
[1745340292181,43.4446,1694.9,1694.8,2.79093]
[1745340292383,43.4446,1694.9,1694.8,5.99873]
[1745340292582,43.4446,1694.9,1694.8,2.79093]
[1745340293787,2.6446,1694.9,1694.8,2.79093]
[1745340293983,0.98793939,1695.0,1694.9,1.17916]
[1745340294190,0.98793939,1695.0,1694.9,14.48256636]
[1745340294489,41.78793939,1695.0,1694.9,13.48136636]
[1745340294685,43.40983939,1695.0,1694.9,13.48136636]
[1745340295082,43.40983939,1695.0,1694.9,7.15936636]
[1745340295589,40.80883939,1695.0,1694.9,7.15936636]
[1745340296192,1.63073939,1695.0,1694.9,7.15936636]
[1745340296990,9.39e-06,1695.0,1694.9,7.15936636]
[1745340297289,9.39e-06,1695.0,1694.9,13.48136636]
[1745340298184,9.39e-06,1695.0,1694.9,7.15936636]
[1745340301089,9.39e-06,1695.0,1694.9,5.54766636]
[1745340302090,1.72070939,1695.0,1694.9,5.54766636]
[1745340302390,11.10759939,1695.0,1694.9,4.36850636]
[1745340302596,1.17916,1694.9,1694.8,0.00883939]
[1745340302896,4.95226,1694.9,1694.8,1.18806939]
[1745340303088,4.95226,1694.9,1694.6,11.54692295]
[1745340303286,1.7207,1694.8,1694.7,1.1793]
[1745340303687,2.0524,1694.9,1694.8,1.17923]
[1745340303985,3.6648,1694.9,1694.8,1.17923]
[1745340304489,9.39e-06,1695.0,1694.9,1.17916]
[1745340304993,1.61240939,1695.0,1694.9,1.17916]
[1745340307295,1.61240939,1695.0,1694.9,2.85956]
[1745340307593,13.79488,1695.5,1694.9,2.85956]
[1745340307594,3.2078,1695.6,1695.0,2.94772]
[1745340307895,2.6527,1695.4,1695.3,1.17888]
[1745340308091,43.4527,1695.4,1695.3,1.17888]
[1745340309299,44.63154,1695.4,1695.2,4.38671]
[1745340309497,1.6296,1695.3,1695.2,4.38671]
[1745340312597,1.6296,1695.3,1695.2,1.17891]
[1745340316007,1.17843,1696.0,1695.3,5.89441]
[1745340316304,2.7587,1695.7,1695.6,4.38647]
[1745340316508,40.8,1696.0,1695.9,1.17846]
[1745340316698,43.5587,1696.0,1695.9,1.17846]
[1745340316897,48.5587,1696.0,1695.9,1.17846]
[1745340317699,43.5587,1696.0,1695.9,1.17846]
[1745340318399,3.2078,1696.3,1696.0,1.17839]
[1745340318600,1.17816,1696.4,1696.2,1.17825]
[1745340319210,4.151,1696.3,1696.1,1.17826]
[1745340319417,40.8,1696.2,1696.1,1.17826]
[1745340320907,40.8,1696.2,1696.0,3.90049]
[1745340320908,3.21663939,1696.4,1696.0,5.66806]
[1745340321201,11.23881,1696.9,1696.6,1.17793]
[1745340321410,40.8,1696.8,1696.4,2.94526]
[1745340321597,43.4676,1696.8,1696.7,1.1779]
[1745340321797,41.798,1696.8,1696.7,1.1779]
[1745340322703,41.798,1696.8,1696.7,4.3857]
[1745340322911,9.39e-06,1696.9,1696.7,9.2078]
[1745340323207,3.2078,1698.1,1697.8,1.17709]
[1745340323398,40.8,1698.0,1697.9,1.17704]
[1745340323998,40.8,1698.0,1697.8,1.17712]
[1745340324202,47.122,1698.0,1697.8,1.18595939]
[1745340324510,47.122,1698.0,1697.9,1.17707]
[1745340324707,47.122,1698.0,1697.8,1.18593939]
[1745340325011,47.122,1698.0,1697.9,1.17707]
[1745340325808,47.122,1698.0,1697.8,1.18592939]
[1745340326013,47.122,1698.0,1697.9,1.17707]
[1745340326704,47.122,1698.0,1697.9,2.82087]
[1745340327099,47.122,1698.0,1697.8,3.21663939]
[1745340327299,47.122,1698.0,1697.9,1.17707]
[1745340327503,47.122,1698.0,1697.8,3.21663939]
[1745340327504,48.29902,1698.0,1697.8,4.39375939]
[1745340327922,47.122,1698.0,1697.9,1.17707]
[1745340328211,48.299,1698.0,1697.8,1.18593939]
[1745340328413,47.122,1698.0,1697.9,1.17707]
[1745340329314,47.122,1698.0,1697.9,2.83027]
[1745340330007,1.17707,1697.9,1697.8,0.00883939]
[1745340330410,6.17707,1697.9,1697.8,0.00883939]
[1745340330905,1.17749,1697.3,1697.2,3.2078]
[1745340331111,1.17749,1697.3,1697.1,4.917]
[1745340331112,1.17767,1697.1,1697.0,1.17768]
[1745340331311,1.17765,1697.1,1697.0,1.17768]
[1745340332016,1.17765,1697.1,1696.8,1.6144]
[1745340332017,1.1777,1697.0,1696.9,0.00883939]
[1745340332208,10.7075,1697.0,1696.9,0.00883939]
[1745340332403,1.17792,1696.7,1696.4,3.2078]
[1745340332602,1.17792,1696.7,1696.6,1.17795]
[1745340332807,1.17811,1696.4,1696.3,1.17815]
[1745340333009,40.8,1696.4,1696.3,1.17813]
[1745340333315,41.97816,1696.4,1696.2,4.8222]
[1745340333510,41.97816,1696.4,1696.2,6.00039]
[1745340333706,41.97816,1696.4,1696.3,1.17818]
[1745340334014,40.8,1696.4,1696.3,1.17818]
[1745340334218,41.97816,1696.4,1696.2,1.18702939]
[1745340334518,40.8,1696.4,1696.3,1.17818]
[1745340335108,5.9388,1696.7,1696.6,1.17797]
[1745340335312,1.0218,1696.7,1696.6,1.17797]
[1745340335514,1.0218,1696.7,1696.3,1.7393]
[1745340335708,1.0218,1696.7,1696.4,1.7393]
[1745340335914,3.2078,1696.8,1696.4,4.68458]
[1745340336109,40.8,1696.7,1696.6,1.17795]
[1745340336412,7.3542,1697.1,1696.7,2.94473]
[1745340336607,7.3542,1697.1,1697.0,1.1777]
[1745340337109,48.1542,1697.1,1697.0,1.1777]
[1745340337416,49.33185,1697.1,1696.9,1.17773]
[1745340338215,1.1777,1697.0,1696.9,1.17773]
[1745340338517,49.33188,1697.1,1696.9,1.17775]
[1745340339221,48.1542,1697.1,1697.0,1.1777]
[1745340339419,47.122,1697.1,1697.0,1.1777]
[1745340339813,48.29963,1697.1,1697.0,1.6157]
[1745340340119,1.1777,1697.0,1696.9,3.2078]
[1745340341120,7.4997,1697.0,1696.9,3.2078]
[1745340341515,7.4997,1697.0,1696.9,1.17777]
[1745340341919,1.17784,1696.8,1696.7,3.66050295]
[1745340342115,7.49984,1696.8,1696.7,3.66050295]
[1745340342315,7.49984,1696.8,1696.6,4.38574]
[1745340342316,6.322,1696.8,1696.6,3.2078]
[1745340342505,6.322,1696.8,1696.7,1.1779]
[1745340343216,6.322,1696.8,1696.7,2.9531]
[1745340344122,0.988,1696.9,1696.8,1.17784]
[1745340344511,52.80468,1697.1,1696.9,1.1777]
[1745340344711,52.80468,1697.1,1696.9,2.9027]
[1745340345212,1.1777,1697.0,1696.9,1.725]
[1745340345406,1.1777,1697.0,1696.9,2.90277]
[1745340345619,46.89465,1697.1,1697.0,1.1777]
[1745340345818,45.717,1697.1,1696.9,2.90272]
[1745340346020,1.1777,1697.0,1696.9,2.90272]
[1745340346418,53.21665,1697.1,1697.0,1.1777]
[1745340346614,1.1777,1697.0,1696.9,1.17774]
[1745340346819,1.17776,1697.0,1696.8,3.2078]
[1745340347020,1.17775,1697.0,1696.9,1.17775]
[1745340347212,1.17775,1697.0,1696.9,1.17777]
[1745340347711,1.1778,1696.9,1696.8,1.17777]
[1745340347918,1.17775,1697.0,1696.9,1.17777]
[1745340348118,7.49975,1697.0,1696.9,1.17777]
[1745340348614,1.1778,1696.9,1696.8,1.17778]
[1745340348820,7.49975,1697.0,1696.9,1.17777]
[1745340349414,1.17778,1696.9,1696.8,1.17778]
[1745340349723,1.17783,1696.9,1696.8,1.17782]
[1745340350122,6.322,1696.9,1696.7,1.6257]
[1745340350323,7.49981,1696.9,1696.8,1.17784]
[1745340350530,6.322,1696.9,1696.8,1.17784]
[1745340350827,7.49977,1696.9,1696.8,1.17784]
[1745340351421,6.322,1696.9,1696.8,1.17784]
[1745340351630,1.1779,1696.8,1696.7,1.17787]
[1745340352226,7.4999,1696.8,1696.7,1.17787]
[1745340352927,1.1779,1696.7,1696.6,3.2078]
[1745340353126,2.8741,1696.7,1696.6,1.17797]
[1745340353326,3.8621,1696.7,1696.6,1.17797]
[1745340354328,1.17797,1696.6,1696.5,2.80369]
[1745340354527,2.87417,1696.6,1696.5,2.80369]
[1745340355030,2.87417,1696.6,1696.4,4.2161]
[1745340355031,1.17804,1696.5,1696.4,1.17808]
[1745340355225,1.6962,1696.5,1696.3,1.7234]
[1745340355433,1.17811,1696.4,1696.3,2.90158]
[1745340355732,2.8743,1696.5,1696.4,1.17811]
[1745340357331,1.6962,1696.5,1696.4,1.17811]
[1745340357523,2.87424,1696.5,1696.4,1.17811]
[1745340357923,1.17804,1696.5,1696.4,1.17811]
[1745340358525,1.17811,1696.4,1696.3,2.90154]
[1745340358833,2.89291,1696.4,1696.3,2.90154]
[1745340359832,2.89291,1696.4,1696.3,1.17814]
[1745340360518,1.17818,1696.3,1696.2,1.18703939]
[1745340360721,2.89298,1696.3,1696.2,2.80853939]
[1745340361122,1.17832,1696.1,1696.0,1.17833]
[1745340361323,1.17831,1696.2,1696.1,1.17825]
[1745340362030,2.81741,1696.2,1696.1,1.17825]
[1745340362234,9.13941,1696.2,1696.1,1.17825]
[1745340362727,49.93941,1696.2,1696.1,1.17825]
[1745340363429,1.17832,1696.1,1696.0,2.80866939]
[1745340363632,2.81742,1696.1,1696.0,2.80866939]
[1745340364225,9.13942,1696.1,1696.0,0.00883939]
[1745340364822,58.14722,1696.1,1696.0,0.00883939]
[1745340365028,1.17871,1695.6,1695.5,1.17869]
[1745340365235,1.17865,1695.7,1695.6,1.17863]
[1745340365734,2.82455,1695.7,1695.6,1.17863]
[1745340365933,1.17865,1695.7,1695.6,1.17863]
[1745340366127,7.50065,1695.7,1695.6,1.17863]
[1745340366537,6.322,1695.7,1695.6,1.17863]
[1745340368132,1.6646,1695.9,1695.8,1.17853]
[1745340368332,1.6646,1695.9,1695.6,2.94661]
[1745340368333,1.17842,1696.0,1695.6,2.94661]
[1745340368636,1.17846,1695.9,1695.8,1.17848]
[1745340368837,1.17853,1695.8,1695.7,7.13394]
[1745340369837,1.17853,1695.8,1695.7,2.90374]
[1745340370134,7.50053,1695.8,1695.7,2.90374]
[1745340370333,9.16513,1695.8,1695.7,2.90374]
[1745340370735,6.322,1695.8,1695.7,2.90374]
[1745340370940,7.50053,1695.8,1695.7,2.90374]
[1745340371142,1.17853,1695.8,1695.7,2.90374]
[1745340372135,7.50053,1695.8,1695.7,2.90374]
[1745340372338,6.322,1695.8,1695.7,2.90374]
[1745340373238,1.17845,1696.0,1695.9,1.17846]
[1745340373435,45.708,1696.1,1696.0,1.17839]
[1745340373634,46.88632,1696.1,1696.0,1.17839]
[1745340374145,53.20832,1696.1,1696.0,1.17839]
[1745340375135,54.99062,1696.1,1696.0,1.17839]
[1745340375330,1.17839,1696.0,1695.9,2.86502]
[1745340375536,1.17852,1695.9,1695.8,1.17846]
[1745340375736,1.17852,1695.9,1695.8,2.89156]
[1745340376242,6.322,1695.9,1695.8,2.89156]
[1745340377147,1.17844,1696.0,1695.9,1.17846]
[1745340377346,1.17844,1696.0,1695.9,1.7286]
[1745340377547,2.95404,1696.0,1695.9,1.7286]
[1745340377743,2.95404,1696.0,1695.9,2.90706]
[1745340381147,7.66776,1696.0,1695.5,3.21663939]
[1745340381348,1.17867,1695.6,1695.5,2.80819939]
[1745340384356,6.322,1695.6,1695.5,2.80819939]
[1745340384546,6.322,1695.6,1695.5,6.98839939]
[1745340384848,5.91,1696.0,1695.9,1.17846]
[1745340385049,1.17846,1695.9,1695.8,3.2078]
[1745340385239,1.17867,1695.6,1695.5,0.00883939]
[1745340385446,1.17888,1695.3,1695.2,1.7464]
[1745340385749,3.2078,1695.3,1694.8,3.2078]
[1745340386045,5.91,1695.4,1694.8,2.92557]
[1745340386046,3.2078,1695.1,1694.8,2.92557]
[1745340386242,41.97909,1695.0,1694.9,1.6983]
[1745340386548,43.66299,1695.0,1694.9,1.6983]
[1745340386849,42.4839,1695.0,1694.9,2.87746]
[1745340387047,43.66299,1695.0,1694.9,1.6983]
[1745340387250,49.98499,1695.0,1694.9,1.6983]
[1745340388255,1.17916,1694.9,1694.8,0.00883939]
[1745340388449,2.86306,1694.9,1694.8,0.00883939]
[1745340388648,1.17936,1694.6,1694.5,3.2078]
[1745340388849,1.17933,1694.7,1694.6,1.17935]
[1745340389149,9.18523,1694.7,1694.6,1.17935]
[1745340389853,8.0059,1694.7,1694.6,1.17935]
[1745340390250,6.322,1694.7,1694.6,1.17935]
[1745340391146,7.50135,1694.7,1694.5,6.08549]
[1745340391754,6.322,1694.7,1694.5,6.08549]
[1745340391953,7.50133,1694.7,1694.6,1.17936]
[1745340392163,7.50133,1694.7,1694.5,2.87768]
[1745340393052,7.50133,1694.7,1694.6,1.17936]
[1745340393252,7.50133,1694.7,1694.5,2.87768]
[1745340393253,1.17936,1694.6,1694.5,2.87768]
[1745340393749,7.50135,1694.7,1694.5,2.87768]
[1745340393955,7.50135,1694.7,1694.6,1.6574]
[1745340394357,7.50135,1694.7,1694.6,2.83676]
[1745340395653,7.50135,1694.7,1694.6,1.6574]
[1745340395842,7.50135,1694.7,1694.6,2.83676]
[1745340396958,6.322,1694.7,1694.6,2.83676]
[1745340397158,1.1793,1694.7,1694.6,2.83676]
[1745340398362,7.5013,1694.7,1694.6,2.83676]
[1745340398860,6.322,1694.7,1694.6,2.83676]
[1745340399255,1.17923,1694.8,1694.7,1.1793]
[1745340399563,1.17923,1694.8,1694.7,2.8699]
[1745340399761,1.17923,1694.8,1694.7,3.8613]
[1745340400152,7.50123,1694.8,1694.7,3.8613]
[1745340400355,6.322,1694.8,1694.7,3.8613]
[1745340400753,7.50123,1694.8,1694.7,3.8613]
[1745340401260,2.78542,1694.9,1694.8,1.17923]
[1745340401559,1.6062,1694.9,1694.8,2.87263]
[1745340401858,41.97909,1695.0,1694.9,1.17916]
[1745340402060,41.97909,1695.0,1694.9,2.87256]
[1745340402661,41.97909,1695.0,1694.9,1.17916]
[1745340402859,43.74819,1695.0,1694.9,1.17916]
[1745340403060,41.97909,1695.0,1694.9,1.17916]
[1745340403262,48.30109,1695.0,1694.9,1.17916]
[1745340403857,48.30109,1695.0,1694.9,2.87256]
[1745340406059,47.122,1695.0,1694.9,2.87256]
[1745340407066,48.30109,1695.0,1694.9,2.87256]
[1745340407266,47.122,1695.0,1694.9,2.87256]
[1745340408365,40.8,1695.0,1694.9,2.87256]
[1745340408567,41.97909,1695.0,1694.9,1.6934]
[1745340408764,40.8,1695.0,1694.9,2.87256]
[1745340409159,48.30109,1695.0,1694.9,2.87256]
[1745340410865,47.122,1695.0,1694.9,2.87256]
[1745340412369,48.7651,1695.0,1694.9,2.87256]
[1745340412861,49.9443,1695.0,1694.9,2.87267]
[1745340413673,48.7651,1695.0,1694.9,2.87267]
[1745340414266,49.9443,1695.0,1694.9,2.87267]
[1745340415057,48.7651,1695.0,1694.9,2.87267]
[1745340415365,49.9443,1695.0,1694.9,2.87267]
[1745340415668,48.7651,1695.0,1694.9,2.87267]
[1745340415863,47.122,1695.0,1694.9,2.87267]
[1745340417461,3.37088,1695.0,1694.9,11.08047]
[1745340417666,1.12419,1695.0,1694.9,19.63197295]
[1745340417865,0.00883939,1695.1,1695.0,1.1792]
[1745340418072,9.39e-06,1695.1,1695.0,4.8169]
[1745340418263,9.39e-06,1695.1,1695.0,9.8169]
[1745340420666,9.39e-06,1695.1,1695.0,4.8169]
[1745340421171,6.32200939,1695.1,1695.0,4.8169]
[1745340422067,6.32200939,1695.1,1695.0,9.8169]
[1745340422274,9.39e-06,1695.1,1695.0,4.8169]
[1745340425783,1.7179,1695.4,1695.3,1.179]